Cogmind - Beta 13 @@@ ROGUE MODE // 2024.04.08 @ 01:20:54 Player: Toa of Guts Result: Destroyed by G-34 Mercenary with Small Laser Performance ------------- Evolutions (1) 500 Regions Visited (3) 600 Robots Destroyed (42) 210 Value Destroyed (1197) 1197 Prototype IDs (0) 0 Alien Tech Used (0) 0 Bonus (22) 22 TOTAL SCORE: 2529 Bonus ------- High Alert Combat Kills 22 Cogmind --------- Core Integrity 0/400 Matter 214/300 Energy 119/250 System Corruption 3% Temperature Cool (6) Movement Rolling (115) Ox1 Location -9/Storage Parts ------- > --- POWER (1) -------- Ion Engine > --- PROPULSION (3) --- Compact Wheel > --- UTILITY (3) ------ Heat Sink Medium Storage Unit > --- WEAPON (2) ------- Beam Rifle > --- INVENTORY (10) --- Improved Terrain Scanner ECM Suite Mini Grenade Launcher Peak State ------------ > --- POWER ------------ Ion Engine > --- PROPULSION ------- Light Treads Aluminum Leg Armored Wheel > --- UTILITY ---------- Medium Storage Unit Structural Scanner Medium Armor Plating > --- WEAPON ----------- Spread Laser Light Assault Rifle > --- INVENTORY -------- Ion Engine Aluminum Leg Compact Wheel Heat Sink Improved Terrain Scanner ECM Suite Beam Rifle Mini Grenade Launcher [Rating: 13] Favorites ----------- Power Ion Engine Engine Ion Engine Propulsion Aluminum Leg Treads Light Treads Leg Aluminum Leg Wheel Armored Wheel Utility Medium Storage Unit Device Heat Sink Storage Medium Storage Unit Protection Light Armor Plating Weapon Light Assault Rifle Energy Gun Spread Laser Ballistic Gun Light Assault Rifle Launcher Grenade Launcher Build | -11 -10 -9 -9 ------- Run | Yrd Mat Mat Sto Slots Evolved 2 | . . 2 . Power . | . . . . Propulsion 1 | . . 1 . Utility 1 | . . 1 . Weapon . | . . . . Parts Attached 53 | 7 13 11 22 Power 7 | 1 1 3 2 Engine 7 | 1 1 3 2 Core . | . . . . Reactor . | . . . . Propulsion 21 | 2 4 5 10 Treads 5 | . . 2 3 Leg 14 | 2 4 3 5 Wheel 2 | . . . 2 Hover . | . . . . Flight . | . . . . Utility 12 | 1 3 2 6 Device 5 | . 2 1 2 Storage 2 | 1 1 . . Processor . | . . . . Hackware . | . . . . Protection 5 | . . 1 4 Artifact . | . . . . Weapon 13 | 3 5 1 4 Energy Gun 8 | 2 4 1 1 Energy Cannon . | . . . . Ballistic Gun 3 | 1 . . 2 Ballistic Cannon . | . . . . Launcher 2 | . 1 . 1 Special Weapon . | . . . . Impact Weapon . | . . . . Slashing Weapon . | . . . . Piercing Weapon . | . . . . Special Melee Weapon . | . . . . Unidentified Prototypes . | . . . . Parts Lost 19 | . 3 2 14 Power 2 | . . . 2 Propulsion 5 | . 1 . 4 Utility 7 | . . 1 6 Weapon 5 | . 2 1 2 Highest Loss Streak 10 | . 1 2 10 To Critical Strikes . | . . . . Average Slot Usage (%) 92 | . 86 87 96 Engine 11 | . 14 11 10 Treads 7 | . . 11 10 Leg 22 | . 27 22 19 Wheel 1 | . . . 1 Device 9 | . 5 9 10 Storage 11 | . 14 11 11 Protection 6 | . . 2 10 Energy Gun 13 | . 15 19 11 Ballistic Gun 8 | . 9 . 9 Naked Turns . | . . . . Heaviest Build 27 | 14 19 25 27 Greatest Support 20 | 20 20 20 20 Greatest Overweight (x) 2 | 1 1 1 2 Average Overweight (x) . | . . . 1 Largest Inventory Capacity 10 | 8 10 10 10 Average Capacity 9 | 7 8 10 10 Most Carried 10 | 6 9 10 10 Average Carried 8 | 4 6 8 9 Final Capacity 10 | 8 10 10 10 Final Carried 9 | 6 9 9 3 Class Distribution -------------------- 80% | Scavenger-Mutant 19% | Mutant Dominant Class ---------------- Mutant | -10/Materials Scavenger-Mutant | -9/Materials Scavenger-Mutant | -9/Storage Resources | -11 -10 -9 -9 ----------- Run | Yrd Mat Mat Sto Matter Collected 799 | 265 158 87 289 Remotely . | . . . . Salvage Created 1447 | . 422 286 739 Parts 92 | . 22 16 54 Haulers Intercepted 1 | . 1 . . Recyclers Shooed 1 | . 1 . . Parts Field Recycled . | . . . . Retrieved Matter . | . . . . Parts Self-Destructed . | . . . . Prevented . | . . . . Kills | -11 -10 -9 -9 ------- Run | Yrd Mat Mat Sto Combat Hostiles Destroyed 38 | . 8 6 24 Guns 38 | . 8 6 24 Classes Destroyed 7 | . 5 2 . Worker 2 | . 1 . 1 Hauler 1 | . 1 . . Recycler 1 | . 1 . . Swarmer 11 | . 3 . 8 Grunt 15 | . 5 4 6 Brawler 1 | . . 1 . Sentry 11 | . . 1 10 Best Kill Streak 7 | . 5 3 7 Combat Bots Only 6 | . 4 3 6 Max Kills in Single Turn 2 | . 1 1 2 Gunslinging . | . . . . Exploded . | . . . . Melee . | . . . . Uniques/NPCs Destroyed . | . . . . Combat | -11 -10 -9 -9 -------- Run | Yrd Mat Mat Sto Hostile Shots Fired 286 | . 69 21 196 Missed 60 | . 20 2 38 Damage Taken 3045 | . 641 265 2139 Core 513 | . 102 41 370 Absorbed by Shields . | . . . . Core Remaining (%) 79 | 100 59 . . Volleys Fired 142 | . 51 15 76 Largest 2 | . 2 2 2 Hottest 105 | . 90 90 105 Shots Fired 234 | . 73 29 132 Gun 231 | . 71 29 131 Cannon . | . . . . Launcher 3 | . 2 . 1 Special . | . . . . Kinetic 88 | . 35 . 53 Thermal 143 | . 36 29 78 Explosive 3 | . 2 . 1 Electromagnetic . | . . . . Robot Hit Streak 17 | . 8 15 17 Robot Miss Streak 5 | . 3 1 5 Penetration Max . | . . . . Secondary Targets 3 | . 1 . 2 Max Gunslinging Chain 1 | . 1 . 1 Shots Hit Robots 180 | . 51 21 108 Core Hits 128 | . 21 12 95 Critical Kills 1 | . . . 1 Critical Parts Destroyed 1 | . 1 . . Critical Strikes 7 | . 4 1 2 Burn 5 | . 3 1 1 Destroy 2 | . 1 . 1 Melee Attacks . | . . . . Impact . | . . . . Slashing . | . . . . Piercing . | . . . . Sneak Attacks . | . . . . Combat Hostiles . | . . . . Follow-up Attacks . | . . . . Damage Inflicted 2302 | . 580 246 1476 Guns 2162 | . 534 246 1382 Cannons . | . . . . Explosions 140 | . 46 . 94 Melee . | . . . . Ramming . | . . . . Kinetic 480 | . 200 . 280 Thermal 1682 | . 334 246 1102 Explosive 140 | . 46 . 94 Electromagnetic . | . . . . Impact . | . . . . Slashing . | . . . . Piercing . | . . . . Highest Corruption 3 | . . 1 3 Average Corruption 1 | . . 1 1 Corruption Purged . | . . . . Corruption Blocked . | . . . . Effects 12 | . . . 12 Message Errors 1 | . . . 1 Matter Fused 4 | . . . 4 Heat Flow Errors 1 | . . . 1 Energy Discharges 2 | . . . 2 Parts Rejected 1 | . . . 1 Alerts 1 | . . . 1 Weapon Failures 2 | . . . 2 Overload Shots . | . . . . Overflow Damage . | . . . . Projectiles . | . . . . Explosions . | . . . . Melee . | . . . . Knockbacks . | . . . . Impact . | . . . . Kinetic . | . . . . Secondary . | . . . . Self-Inflicted Damage 149 | . 41 . 108 Shots 4 | . 2 . 2 Rammed . | . . . . Targets Rammed . | . . . . Kicked . | . . . . Crushed . | . . . . Highest Temperature 364 | . 212 39 364 Average Temperature 86 | . 92 13 90 Received Heat Transfer 1197 | . 312 99 786 Effects 1 | . . . 1 Matter Decay 1 | . . . 1 Siege Activations . | . . . . Robots Corrupted . | . . . . Combat Hostiles . | . . . . Parts Fried . | . . . . Impact Corruptions . | . . . . Robots Melted . | . . . . Combat Hostiles . | . . . . Parts Melted 3 | . 2 1 . Heat Transferred 3655 | . 1209 731 1715 Parts Sabotaged . | . . . . Parts Stolen . | . . . . Parts Stripped . | . . . . Power Chain Reactions . | . . . . Alert | -11 -10 -9 -9 ------- Run | Yrd Mat Mat Sto Peak Influence 437 | . 275 184 437 Initial 77 | . . 49 77 Average 217 | . 131 100 305 Maximum Alert Level 2 | . 1 . 2 Low Security (%) 42 | 100 67 100 11 Level 1 49 | . 32 . 75 Level 2 7 | . . . 13 Level 3 . | . . . . Level 4 . | . . . . Level 5 . | . . . . High Security . | . . . . Max Security . | . . . . Squads Dispatched 5 | . 2 . 3 Investigation 1 | . . . 1 Extermination . | . . . . Reinforcement 4 | . 2 . 2 Assault . | . . . . Garrison . | . . . . Intercept . | . . . . Searches Triggered . | . . . . Construction Impeded . | . . . . Haulers Reinforced . | . . . . Active Scanning Responses . | . . . . Cargo Convoy Interrupts . | . . . . Stealth | -11 -10 -9 -9 --------- Run | Yrd Mat Mat Sto Distress Signals 4 | . 3 1 . Communications Jammed . | . . . . Distress Signals . | . . . . Times Spotted 60 | . 22 7 31 Peak Tracking Total 6 | . 6 4 6 Tactical Retreats 4 | . 4 . . Traps | -11 -10 -9 -9 ------- Run | Yrd Mat Mat Sto Traps Triggered 4 | . 2 . 2 Indirectly . | . . . . Trap Hack Attempts . | . . . . Triggered . | . . . . Disarmed . | . . . . Reprogrammed . | . . . . Reused . | . . . . Traps Extracted . | . . . . Installed . | . . . . Triggered . | . . . . Machines | -11 -10 -9 -9 ---------- Run | Yrd Mat Mat Sto Machines Disabled 1 | . . . 1 Max in Single Turn 1 | . . . 1 Machines Repaired . | . . . . Machines Dismantled . | . . . . Machines Sabotaged . | . . . . Overloaded Fab Kills . | . . . . Hacking | -11 -10 -9 -9 --------- Run | Yrd Mat Mat Sto Machines Accessed 1 | . . . 1 Terminals 1 | . . . 1 Fabricators . | . . . . Repair Stations . | . . . . Recycling Units . | . . . . Scanalyzers . | . . . . Garrison Access . | . . . . Total Hacks 2 | . . . 2 Successful 1 | . . . 1 Failed 1 | . . . 1 Catastrophic . | . . . . Database Lockouts . | . . . . Manual . | . . . . Terminals 2 | . . . 2 Fabricators . | . . . . Repair Stations . | . . . . Recycling Units . | . . . . Scanalyzers . | . . . . Garrison Access . | . . . . Terminal Hacks 1 | . . . 1 Open Door 1 | . . . 1 Fabricator Hacks . | . . . . Repair Station Hacks . | . . . . Recycling Unit Hacks . | . . . . Scanalyzer . | . . . . Garrison Access Hacks . | . . . . Unauthorized Hacks . | . . . . Terminals . | . . . . Fabricators . | . . . . Repair Stations . | . . . . Recycling Units . | . . . . Scanalyzers . | . . . . Garrison Access . | . . . . Data Cores Recovered . | . . . . Used . | . . . . Hacking Detections . | . . . . Full Trace Events . | . . . . Feedback Events . | . . . . Feedback Blocked . | . . . . Robot Schematics Acquired . | . . . . Robots Built . | . . . . Authchips . | . . . . Time . | . . . . Total Robot Build Rating . | . . . . Part Schematics Acquired . | . . . . Parts Built . | . . . . Authchips . | . . . . Time . | . . . . Total Part Build Rating . | . . . . Parts Repaired . | . . . . Time . | . . . . Parts Recycled . | . . . . Recycled Matter . | . . . . Retrieved Matter . | . . . . Retrieved Components . | . . . . Parts Scanalyzed . | . . . . Part Schematics Acquired . | . . . . Parts Damaged . | . . . . Bothacking | -11 -10 -9 -9 ------------ Run | Yrd Mat Mat Sto Used RIF Installer . | . . . . Robots Hacked . | . . . . Non-combat . | . . . . Combat . | . . . . Robot Hacks Applied . | . . . . Relay Couplers Released . | . . . . Fabnet Peak Effective % . | . . . . Robots Rewired . | . . . . Allies Hacked . | . . . . Hacks Repelled . | . . . . Allies | -11 -10 -9 -9 -------- Run | Yrd Mat Mat Sto Total Allies . | . . . . Largest Group . | . . . . Highest-Rated Group . | . . . . Highest-Rated Ally . | . . . . Total Orders . | . . . . Ally Attacks . | . . . . Total Damage . | . . . . Kills . | . . . . Allies Corrupted . | . . . . Allies Melted . | . . . . Intel | -11 -10 -9 -9 ------- Run | Yrd Mat Mat Sto Robot Analysis Total . | . . . . Derelict Logs Recovered . | . . . . Drone Launches . | . . . . Drone Recoveries . | . . . . Exploration | -11 -10 -9 -9 ------------- Run | Yrd Mat Mat Sto Turns Passed 1798 | 78 461 265 994 Spaces Moved 822 | 47 252 138 385 Core 6 | 6 . . . Treads . | . . . . Legs 767 | 41 252 138 336 Wheels 49 | . . . 49 Hover . | . . . . Flight . | . . . . Fastest Speed 50 | 50 120 120 90 Average Speed 150 | 131 121 129 179 Slowest Speed 260 | 190 190 190 260 Overloaded Moves . | . . . . Propulsion Burnouts . | . . . . Robots Hopped . | . . . . Cave-ins Triggered . | . . . . Exploration Rate (%) 34 | 4 49 13 70 Regions Visited 3 Branch Regions 1 Pre-discovered Areas . | . . . . Known Exits Taken . | . . . . Unknown Exits Taken 3 | 1 1 1 . Scrap Searched . | . . . . Spaces Dug . | . . . . Terrain Destroyed 36 | . 13 . 23 Melee . | . . . . Projectile . | . . . . AOE 36 | . 13 . 23 Terrain Rammed . | . . . . Walls Destroyed . | . . . . Machines Disabled . | . . . . Actions | -11 -10 -9 -9 --------- Run | Yrd Mat Mat Sto Total 1165 | 59 338 198 570 Wait 101 | . 14 23 64 Move 819 | 46 251 137 385 Hop . | . . . . Pick Up 22 | 6 3 3 10 Fast Attach 17 | 6 7 3 1 Attach 12 | . 1 1 10 Detach 1 | . 1 . . Swap 24 | 1 5 7 11 Drop 27 | . 5 9 13 Fire 142 | . 51 15 76 Melee . | . . . . Ram . | . . . . Kick . | . . . . Crush . | . . . . Escape Stasis . | . . . . Rewire . | . . . . Trap . | . . . . Miscellaneous . | . . . . Route ------- -11/Scrapyard -10/Materials (discovered 2 exits: [*Mat] / [*Min]) -9/Materials -9/Storage History --------- Turn | Location | Event 32 | -11/Scrapyard | Discovered new exit (range 14) 79 | -11/Scrapyard | Entered Materials 168 | -10/Materials | Discovered new exit (range 15) 325 | -10/Materials | Build established: Mutant 508 | -10/Materials | Discovered new exit (range 7) 540 | -10/Materials | Entered another Materials area 540 | -9/Materials | Evolved 2 slots: Propulsion x1, Utility x1 627 | -9/Materials | Build established: Scavenger-Mutant 687 | -9/Materials | Discovered new exit (range 14) 805 | -9/Materials | Entered Storage 1727 | -9/Storage | Core integrity fell below 50% 1757 | -9/Storage | Core integrity fell below 20% 1799 | -9/Storage | Destroyed by G-34 Mercenary with Small Laser Last Messages --------------- 01744_ Med. Armor Plating destroyed. 01744_ Destroyed Med. Armor Plating. 01745_ The unstable cave ceiling collapses. 01746_ System corrupted: Energy discharge (-12). 01747_ Spread Laser destroyed. 01749_ Overheating: Matter decay (-75). 01750_ Lgt. Assault Rifle destroyed. 01751_ Aluminum Leg destroyed. 01752_ Acquired 24 matter. 01753_ Structural Scanner destroyed. 01754_ Acquired Lgt. Armor Plating. 01769_ Lgt. Armor Plating destroyed. 01775_ System corrupted: Matter fused (-9). 01777_ Y-45 Defender suffers critical hit (Burn). 01778_ Critical hit (Burn: +37). 01782_ Y-45 Defender heat short circuits Imp. Ion Engine. 01783_ Y-45 Defender heat damages Lgt. Treads, Lgt. Armor Plating. 01783_ Y-45 Defender destroyed. 01787_ Destroyed Ion Engine. 01789_ Arm. Wheel destroyed. Map ----- +----------------------------------------------------+ | # #???### """ """ ########### ######## | | # #???## """ """ ########### T == | | ?# #???### """ """ ##???????## #####+##%* | | ?#% #???##############???????### ### #! | | ######/###????#############???????### ###??"" #= * | | ???# %%##?????????????????????????? ##??""" #%# | | ???# T#????????????????????###??? ##??""" # # | | ???# ##????????????????????###?? ### #[# | | ???#! #?????????????????????## ####### # ## | | ???#! !#?????????????????????## ### ### ## | | ???#! !#?????????????????????## T ## | | ???#! !#?????????????????????## ######### ###### | | ???#####???????????????######## ########## ####### | | ???????????????????????########+### # ####### | | ?????????????????######## # + #### | | ??????????????########### T [ # # #### | | ??????????????##### # # ? # #### | | ?????????????? # ??? + # | | ?????????????? [[ # ? # #####+# | | ??????????????? [[ ##?##### ### | | ?????????????????## [ ![ ##?## ###% | | ????????????????? ##??## = * ##### ### "" | | ??????????????????????## ######### ### "" | | ??????????????????????##%!= % + "" | | ??????????????????######g################# ### | | ??????????????????# @ ######## # ###" " | | ??????????????????# ###???????## ######"R" | | ??????????????????# #?????????#########""" | | ??????????????????# #?????????####???##### | | ??????????????????###########?????????????????#### | | | | | | | | | | | | | | | | | | | | | | | | | | | | | | | | | | | | | | | | | +----------------------------------------------------+ Best States ------------- Heat Dissipation 38 Energy Generation 12 Energy Capacity 265 Matter Stores 300 Matter Capacity 300 Sight Range 16 Terrain Scan Density 10 Armor Coverage 225 Evasion (%) 55 Recoil Reduction 1 Item Schematics ----------------- None Robot Schematics ------------------ None Fabricated ------------ Nothing Alien Tech Used ----------------- None Achievements -------------- None Challenges ------------ None Game ------ Seed FlyingZionitePlatform Manual? 0 Play Time 00:20:51 Cumulative 85.1 hours Start 2024.04.08 @ 01:02:35 End 2024.04.08 @ 01:20:54 Sessions 1 Manual Loads 0 Difficulty Rogue Special Mode None Game No. 59 Rogue 59 Adventurer 0 Explorer 0 Win Type - Total 0 Types 0/0/0/0/0/0/0/0/0 Lore% 32 Gallery% 45 Achievement% 28 Wizard Run 0 Options --------- Layout 0 ASCII 0 Keyboard 0 Movement Mouse Keybinds 0 Fullscreen 1 Font 24/X11 Map View 76x50 Zoom Use 0% Tactical HUD 1 Map Filters NONE Filters NONE Steam 1 RUN: be95fe47-616d-470a-ad1e-0332c926ccd6